bitfinex/quotes_BTCUSD_20250610
["timestamp","ask_amount","ask_price","bid_price","bid_amount"]
[1749544927639,0.53919935,109290.0,109280.0,0.57137317]
[1749544927866,0.19919935,109290.0,109280.0,0.57137317]
[1749544928312,0.18299935,109290.0,109280.0,0.58850245]
[1749544928532,0.18299935,109290.0,109280.0,0.59492593]
[1749544929202,0.18299935,109290.0,109280.0,0.5885022]
[1749544929429,0.18299935,109290.0,109280.0,0.58850218]
[1749544929656,0.18299935,109290.0,109280.0,0.59492589]
[1749544929876,0.18299935,109290.0,109280.0,0.57779663]
[1749544930086,0.18299935,109290.0,109280.0,0.59492587]
[1749544930286,0.18299935,109290.0,109280.0,0.57137317]
[1749544930529,0.18299935,109290.0,109280.0,0.59492431]
[1749544930756,0.18299935,109290.0,109280.0,0.58850127]
[1749544931194,0.18299935,109290.0,109280.0,0.57137317]
[1749544931420,0.18299935,109290.0,109280.0,0.5949247]
[1749544931877,0.18299935,109290.0,109280.0,0.57779618]
[1749544932091,0.18299935,109290.0,109280.0,0.59492422]
[1749544932303,0.52299935,109290.0,109280.0,0.59492422]
[1749544932518,0.52299935,109290.0,109280.0,0.58850109]
[1749544932749,0.52299935,109290.0,109280.0,0.57779614]
[1749544932966,0.52299935,109290.0,109280.0,0.59492406]
[1749544933841,0.52299935,109290.0,109280.0,0.63146431]
[1749544934049,0.52299935,109290.0,109280.0,0.59492406]
[1749544934267,0.52299935,109290.0,109280.0,0.59492501]
[1749544934491,0.52299935,109290.0,109280.0,0.63146551]
[1749544934715,0.52299935,109290.0,109280.0,0.60791367]
[1749544935151,0.52299935,109290.0,109280.0,0.63146626]
[1749544935437,0.52299935,109290.0,109280.0,0.59492563]
[1749544935653,0.52299935,109290.0,109280.0,0.59492562]
[1749544935864,0.52299935,109290.0,109280.0,0.57137317]
[1749544936084,0.52299935,109290.0,109280.0,0.59492581]
[1749544936297,0.52299935,109290.0,109280.0,0.58850238]
[1749544936723,0.52299935,109290.0,109280.0,0.57779662]
[1749544936939,0.52299935,109290.0,109280.0,0.57137317]
[1749544937158,0.52299935,109290.0,109280.0,0.58850238]
[1749544937397,0.18299935,109290.0,109280.0,0.57137317]
[1749544937611,0.18299935,109290.0,109280.0,0.58850238]
[1749544937835,0.18299935,109290.0,109280.0,0.57137317]
[1749544938053,0.18299935,109290.0,109280.0,0.58850238]
[1749544938261,0.18299935,109290.0,109280.0,0.57779662]
[1749544938482,0.18299935,109290.0,109280.0,0.59492583]
[1749544938941,0.18299935,109290.0,109280.0,0.57137317]
[1749544939180,0.18299935,109290.0,109280.0,0.58850238]
[1749544939411,0.18299935,109290.0,109280.0,0.59492583]
[1749544939656,0.18299935,109290.0,109280.0,0.58850238]
[1749544939875,0.18299935,109290.0,109280.0,0.57779734]
[1749544940085,0.18299935,109290.0,109280.0,0.57779776]
[1749544940298,0.18299935,109290.0,109280.0,0.59493218]
[1749544940544,0.18299935,109290.0,109280.0,0.59493356]
[1749544940757,0.18299935,109290.0,109280.0,0.59493382]
[1749544941410,0.18299935,109290.0,109280.0,0.57137317]
[1749544941619,0.18299935,109290.0,109280.0,0.59493382]
[1749544941834,0.18299935,109290.0,109280.0,0.58850818]
[1749544942058,0.18299935,109290.0,109280.0,0.57137317]
[1749544942488,0.18299935,109290.0,109280.0,0.58850836]
[1749544942698,0.18299935,109290.0,109280.0,0.59493434]
[1749544942906,0.18299935,109290.0,109280.0,0.57137317]
[1749544943123,0.18299935,109290.0,109280.0,0.59493452]
[1749544943334,0.18299935,109290.0,109280.0,0.59493472]
[1749544943528,0.18299935,109290.0,109280.0,0.5885089]
[1749544943766,0.18299935,109290.0,109280.0,0.59493497]
[1749544943953,0.18299935,109290.0,109280.0,0.57779911]
[1749544944196,0.18299935,109290.0,109280.0,0.57137317]
[1749544944415,0.18299935,109290.0,109280.0,0.57779911]
[1749544944638,0.18299935,109290.0,109280.0,0.57137317]
[1749544944856,0.18299935,109290.0,109280.0,0.57779911]
[1749544945076,0.18299935,109290.0,109280.0,0.58850903]
[1749544945292,0.18299935,109290.0,109280.0,0.57779911]
[1749544945518,0.18299935,109290.0,109280.0,0.57137317]
[1749544945734,0.18299935,109290.0,109280.0,0.588509]
[1749544945963,0.18299935,109290.0,109280.0,0.57779909]
[1749544946181,0.21399935,109290.0,109280.0,0.59493489]
[1749544946626,0.21399935,109290.0,109280.0,0.58850932]
[1749544946846,0.21399935,109290.0,109280.0,0.59493566]
[1749544947070,0.21399935,109290.0,109280.0,0.57779929]
[1749544947331,0.21399935,109290.0,109280.0,0.57137317]
[1749544947542,0.21399935,109290.0,109280.0,0.63149761]
[1749544947759,0.21399935,109290.0,109280.0,0.62507127]
[1749544947977,0.21399935,109290.0,109280.0,0.60793428]
[1749544948195,0.21399935,109290.0,109280.0,0.62507127]
[1749544948415,0.21399935,109290.0,109280.0,0.61436374]
[1749544948637,0.19819935,109290.0,109280.0,0.61436373]
[1749544948858,0.19819935,109290.0,109280.0,0.62507949]
[1749544949077,0.19819935,109290.0,109280.0,0.61436373]
[1749544949293,0.19819935,109290.0,109280.0,0.63150896]
[1749544949513,0.19819935,109290.0,109280.0,0.63150887]
[1749544949767,0.19819935,109290.0,109280.0,0.6315088]
[1749544949969,0.21349935,109290.0,109280.0,0.60793428]
[1749544950188,0.21349935,109290.0,109280.0,0.59837712]
[1749544950395,0.55349935,109290.0,109280.0,0.55955134]
[1749544950649,0.55349935,109290.0,109280.0,0.58527263]
[1749544950825,0.55349935,109290.0,109280.0,0.59555132]
[1749544951076,0.55349935,109290.0,109280.0,0.59769471]
[1749544951288,0.55349935,109290.0,109280.0,0.59769468]
[1749544951501,0.55349935,109290.0,109280.0,0.60626844]
[1749544951710,0.55349935,109290.0,109280.0,0.61269888]
[1749544951946,0.55349935,109290.0,109280.0,0.61269877]
[1749544952157,0.55349935,109290.0,109280.0,0.61269872]
[1749544952366,0.55349935,109290.0,109280.0,0.6062689]
[1749544952577,0.55349935,109290.0,109280.0,0.58912121]
[1749544952796,0.55349935,109290.0,109280.0,0.6126997]
[1749544953005,0.55349935,109290.0,109280.0,0.61269948]
[1749544953224,0.55349935,109290.0,109280.0,0.61269927]
[1749544953450,0.55349935,109290.0,109280.0,0.20412533]
[1749544953664,0.55349935,109290.0,109280.0,0.2127016]
[1749544953877,0.55349935,109290.0,109280.0,0.60412709]
[1749544954092,0.55349935,109290.0,109280.0,0.58054719]
[1749544954300,0.55349935,109290.0,109280.0,0.59769623]
[1749544954542,0.55349935,109290.0,109280.0,0.59555256]
[1749544954773,0.55349935,109290.0,109280.0,0.59555255]
[1749544954985,0.55349935,109290.0,109280.0,0.612695]
[1749544955192,0.55349935,109290.0,109280.0,0.5881177]
[1749544955403,0.55349935,109290.0,109280.0,0.60624285]
[1749544955618,0.55349935,109290.0,109280.0,0.61266562]
[1749544955860,0.55349935,109290.0,109280.0,0.58697087]
[1749544956083,0.55349935,109290.0,109280.0,0.60410068]
[1749544956302,0.55349935,109290.0,109280.0,0.61266551]
[1749544956516,0.55349935,109290.0,109280.0,0.5515444]
[1749544956721,0.55349935,109290.0,109280.0,0.57610468]
[1749544956930,0.55349935,109290.0,109280.0,0.57610574]
[1749544957165,0.55349935,109290.0,109280.0,0.54398608]
[1749544957383,0.55349935,109290.0,109280.0,0.57610583]
[1749544957589,0.55349935,109290.0,109280.0,0.1589753]
[1749544957800,0.55349935,109290.0,109280.0,0.16754057]
[1749544958013,0.55349935,109290.0,109280.0,0.16111663]
[1749544958225,0.55349935,109290.0,109280.0,0.56754058]
[1749544958436,0.55349935,109290.0,109280.0,0.57610601]
[1749544958652,0.55349935,109290.0,109280.0,0.55897546]
[1749544958858,0.55349935,109290.0,109280.0,0.56967667]
[1749544959099,0.55349935,109290.0,109280.0,0.55254882]
[1749544959295,0.55349935,109290.0,109280.0,0.57609631]
[1749544959511,0.55349935,109290.0,109280.0,0.55897084]
[1749544959736,0.55349935,109290.0,109280.0,0.54398608]
[1749544959952,0.55349935,109290.0,109280.0,0.57609565]
[1749544960162,0.55349935,109290.0,109280.0,0.56967293]
[1749544960377,0.55349935,109290.0,109280.0,0.57609423]
[1749544960804,0.55349935,109290.0,109280.0,0.57609256]
[1749544961039,0.55349935,109290.0,109280.0,0.55254784]
[1749544961252,0.55349935,109290.0,109280.0,0.16967146]
[1749544961457,0.55349935,109290.0,109280.0,0.16110968]
[1749544961664,0.55349935,109290.0,109280.0,0.57609279]
[1749544962758,0.55349935,109290.0,109280.0,0.55254787]
[1749544962967,0.55349935,109290.0,109280.0,0.57609279]
[1749544963183,0.55349935,109290.0,109280.0,0.5589692]
[1749544963400,0.55349935,109290.0,109280.0,0.54398608]
[1749544963626,0.55349935,109290.0,109280.0,0.57609277]
[1749544964049,0.55349935,109290.0,109280.0,0.57609483]
[1749544964272,0.55349935,109290.0,109280.0,0.55254992]
[1749544964532,0.55349935,109290.0,109280.0,0.57610049]
[1749544964781,0.55349935,109290.0,109280.0,0.15254985]
[1749544964991,0.55349935,109290.0,109280.0,0.17610046]
[1749544965215,0.55349935,109290.0,109280.0,0.54398608]
[1749544965461,0.55349935,109290.0,109280.0,0.57610038]
[1749544965678,0.55349935,109290.0,109280.0,0.56967752]
[1749544965904,0.55349935,109290.0,109280.0,0.57610032]
[1749544966138,0.55349935,109290.0,109280.0,0.5761004]
[1749544966369,0.55349935,109290.0,109280.0,0.56753659]
[1749544966573,0.55349935,109290.0,109280.0,0.57610037]
[1749544966779,0.55349935,109290.0,109280.0,0.5611137]
[1749544966986,0.55349935,109290.0,109280.0,0.57610037]
[1749544967202,0.55349935,109290.0,109280.0,0.5761004]
[1749544967443,0.55349935,109290.0,109280.0,0.57610042]
[1749544967678,0.55349935,109290.0,109280.0,0.57610312]
[1749544967895,0.55349935,109290.0,109280.0,0.56753914]
[1749544968112,0.55349935,109290.0,109280.0,0.16753902]
[1749544968338,0.55349935,109290.0,109280.0,0.15255079]
[1749544968566,0.55349935,109290.0,109280.0,0.56753903]
[1749544968794,0.55349935,109290.0,109280.0,0.55255067]
[1749544969006,0.55349935,109290.0,109280.0,0.57610315]
[1749544969222,0.55349935,109290.0,109280.0,0.57610336]
[1749544969438,0.55349935,109290.0,109280.0,0.57610326]
[1749544969651,0.55349935,109290.0,109280.0,0.54398608]
[1749544969866,0.55349935,109290.0,109280.0,0.55897175]
[1749544970078,0.55349935,109290.0,109280.0,0.55897144]
[1749544970297,0.55349935,109290.0,109280.0,0.57609757]
[1749544970507,0.55349935,109290.0,109280.0,0.57610555]
[1749544971403,0.55349935,109290.0,109280.0,0.55041445]
[1749544971623,0.55349935,109290.0,109280.0,0.17612793]
[1749544971838,0.55349935,109290.0,109280.0,0.16755677]
[1749544972052,0.55349935,109290.0,109280.0,0.55898561]
[1749544972273,0.55349935,109290.0,109280.0,0.55255724]
[1749544972541,0.55349935,109290.0,109280.0,0.57612793]
[1749544972997,0.55349935,109290.0,109280.0,0.5589856]
[1749544973213,0.55349935,109290.0,109280.0,0.55898524]
[1749544973438,0.55349935,109290.0,109280.0,0.57612626]
[1749544973654,0.55349935,109290.0,109280.0,0.55255679]
[1749544974327,0.55349935,109290.0,109280.0,0.57612627]
[1749544974765,0.55349935,109290.0,109280.0,0.56969824]
[1749544974976,0.55349935,109290.0,109280.0,0.56969826]
[1749544975184,0.55349935,109290.0,109280.0,0.15041412]
[1749544975397,0.55349935,109290.0,109280.0,0.16969827]
[1749544975620,0.55349935,109290.0,109280.0,0.55255681]
[1749544975832,0.55349935,109290.0,109280.0,0.57612631]
[1749544976047,0.55349935,109290.0,109280.0,0.56969827]
[1749544976285,0.55349935,109290.0,109280.0,0.57612631]
[1749544976533,0.55349935,109290.0,109280.0,0.14299564]
[1749544976764,0.55349935,109290.0,109280.0,0.03414875]
[1749544977002,0.64741935,109290.0,109280.0,0.00842999]
[1749544977225,0.64741935,109290.0,109280.0,0.03415131]
[1749544977680,0.64741935,109290.0,109280.0,0.02772105]
[1749544977928,0.64741935,109290.0,109280.0,0.02772116]
[1749544978358,0.64741935,109290.0,109280.0,0.02672116]
[1749544978567,0.56326673,109280.0,109270.0,0.42452]
[1749544978785,0.56326673,109280.0,109270.0,0.45024123]
[1749544979004,0.56326673,109280.0,109270.0,0.44166747]
[1749544979444,0.56326673,109280.0,109270.0,0.42452]
[1749544979661,0.56326673,109280.0,109270.0,0.44166746]
[1749544979914,0.56326673,109280.0,109270.0,0.42452]
[1749544980170,0.56326673,109280.0,109270.0,0.04366749]
[1749544980400,0.56326673,109280.0,109270.0,0.02652]
[1749544980641,0.56326673,109280.0,109270.0,0.44366743]
[1749544980850,0.56326673,109280.0,109270.0,0.45224111]
[1749544981066,0.56326673,109280.0,109270.0,0.42652]
[1749544981285,0.56326673,109280.0,109270.0,0.44366744]
[1749544981499,0.56326673,109280.0,109270.0,0.4522411]
[1749544981721,0.56326673,109280.0,109270.0,0.42652]
[1749544981944,0.56326673,109280.0,109270.0,0.43509361]
[1749544982165,0.56326673,109280.0,109270.0,0.45224123]
[1749544982380,0.56326673,109280.0,109270.0,0.45224136]
[1749544982608,0.54776673,109280.0,109270.0,0.42652]
[1749544982843,0.54776673,109280.0,109270.0,0.45224123]
[1749544983064,0.54776673,109280.0,109270.0,0.43509374]
[1749544983511,0.54776673,109280.0,109270.0,0.02652]
[1749544983728,0.64168673,109280.0,109270.0,0.0522412]
[1749544983950,0.64168673,109280.0,109270.0,0.03509373]
[1749544984180,0.62608673,109280.0,109270.0,0.44366744]
[1749544984393,0.62608673,109280.0,109270.0,0.42652]
[1749544984636,0.62608673,109280.0,109270.0,0.46081492]
[1749544984847,0.62608673,109280.0,109270.0,0.44366746]
[1749544985072,0.62608673,109280.0,109270.0,0.46081866]
[1749544985538,0.62608673,109280.0,109270.0,0.46939426]
[1749544985959,0.62608673,109280.0,109270.0,0.46939427]
[1749544986396,0.62608673,109280.0,109270.0,0.46081867]
[1749544986614,0.62608673,109280.0,109270.0,0.46939427]
[1749544986843,0.62608673,109280.0,109270.0,0.46081867]
[1749544987064,0.62608673,109280.0,109270.0,0.05224306]
[1749544987289,0.54766673,109280.0,109270.0,0.04366746]
[1749544987514,0.65808673,109280.0,109270.0,0.46939427]
[1749544987793,0.65808673,109280.0,109270.0,0.44366746]
[1749544988033,0.65808673,109280.0,109270.0,0.04366746]
[1749544988246,1.15098673,109280.0,109270.0,0.06082024]
[1749544988465,1.15098673,109280.0,109270.0,0.06082263]
[1749544988684,1.15098673,109280.0,109270.0,0.06940025]
[1749544988902,1.15098673,109280.0,109270.0,0.06940051]
[1749544989358,1.15098673,109280.0,109270.0,0.05222432]
[1749544989589,1.15098673,109280.0,109270.0,0.06733808]
[1749544989800,1.15298673,109280.0,109270.0,0.05022433]
[1749544990023,1.15298673,109280.0,109270.0,0.06733798]
[1749544990239,1.05906673,109280.0,109270.0,0.04166746]
[1749544990481,1.15298673,109280.0,109270.0,0.04166746]
[1749544990703,1.15498673,109280.0,109270.0,0.06733196]
[1749544990920,1.15498673,109280.0,109270.0,0.06733195]
[1749544991146,1.15498673,109280.0,109270.0,0.05022231]
[1749544991360,1.15498673,109280.0,109270.0,0.05877716]
[1749544991579,1.15498673,109280.0,109270.0,0.06733191]
[1749544991814,1.15498673,109280.0,109270.0,0.05877717]
[1749544992021,1.15498673,109280.0,109270.0,0.05022233]
[1749544992231,1.15498673,109280.0,109270.0,0.06733201]
[1749544992673,1.15498673,109280.0,109270.0,0.04166746]
[1749544992908,1.15498673,109280.0,109270.0,0.0673321]
[1749544993150,1.15498673,109280.0,109270.0,0.05022234]
[1749544993349,1.15498673,109280.0,109270.0,0.05877714]
[1749544993569,1.15498673,109280.0,109270.0,0.04166746]
[1749544993786,1.15498673,109280.0,109270.0,0.0502223]
[1749544994000,1.15498673,109280.0,109270.0,0.04166746]
[1749544994208,1.15498673,109280.0,109270.0,0.06732404]
[1749544994394,1.15498673,109280.0,109270.0,0.04166746]
[1749544994596,1.15498673,109280.0,109270.0,0.05021965]
[1749544994811,1.15498673,109280.0,109270.0,0.067324]
[1749544995264,1.15498673,109280.0,109270.0,0.06732164]
[1749544995506,1.15498673,109280.0,109270.0,0.06731695]
[1749544995740,1.15498673,109280.0,109270.0,0.05876719]
[1749544995959,1.15498673,109280.0,109270.0,0.06731705]
[1749544996177,0.53218432,109270.0,109260.0,0.002]
[1749544996388,0.65720432,109270.0,109260.0,0.002]
[1749544996604,0.64210432,109270.0,109260.0,0.002]
[1749544997468,0.54918432,109270.0,109260.0,0.002]
[1749544997893,0.64310432,109270.0,109260.0,0.002]
[1749544998350,0.53318432,109270.0,109260.0,0.002]
[1749544998559,0.62710432,109270.0,109260.0,0.002]
[1749544999709,0.53318432,109270.0,109260.0,0.002]
[1749544999916,0.62710432,109270.0,109260.0,0.002]
[1749545000574,0.65432246,109270.0,109260.0,0.002]
[1749545001296,0.67072246,109270.0,109260.0,0.002]
[1749545002788,0.65432246,109270.0,109260.0,0.002]
[1749545004135,0.67092246,109270.0,109260.0,0.002]
[1749545008306,0.67092246,109270.0,109260.0,0.01913387]
[1749545008514,0.67092246,109270.0,109260.0,0.01913388]
[1749545008939,0.67092246,109270.0,109260.0,0.0277008]
[1749545009361,0.65432246,109270.0,109260.0,0.02770079]
[1749545010025,0.65432246,109270.0,109260.0,0.01056693]
[1749545010231,0.66932246,109270.0,109260.0,0.01913387]
[1749545010648,0.66932246,109270.0,109260.0,0.02770084]
[1749545010868,0.66932246,109270.0,109260.0,0.01056695]
[1749545011080,0.66932246,109270.0,109260.0,0.01056694]
[1749545011286,0.66932246,109270.0,109260.0,0.01913391]
[1749545011499,0.66932246,109270.0,109260.0,0.02770086]
[1749545011709,0.65432246,109270.0,109260.0,0.03543391]
[1749545011958,0.65432246,109270.0,109260.0,0.04400084]
[1749545012194,0.65432246,109270.0,109260.0,0.02770083]
[1749545012405,0.65432246,109270.0,109260.0,0.002]
[1749545012621,0.65432246,109270.0,109260.0,0.02770304]
[1749545013702,0.65432246,109270.0,109260.0,0.01913535]
[1749545013910,0.65432246,109270.0,109260.0,0.02770302]
[1749545014120,0.65432246,109270.0,109260.0,0.02770301]
[1749545014330,0.66942246,109270.0,109260.0,0.02770301]
[1749545014541,0.66942246,109270.0,109260.0,0.01913536]
[1749545014750,0.66942246,109270.0,109260.0,0.002]
[1749545014957,0.66942246,109270.0,109260.0,0.02770302]
[1749545015166,0.66942246,109270.0,109260.0,0.002]
[1749545015398,0.66942246,109270.0,109260.0,0.01913563]
[1749545015833,0.66942246,109270.0,109260.0,0.01913562]
[1749545016064,0.66942246,109270.0,109260.0,0.02770343]
[1749545016271,0.66942246,109270.0,109260.0,0.02770344]
[1749545016710,0.66942246,109270.0,109260.0,0.02770457]
[1749545016989,0.66942246,109270.0,109260.0,0.01913636]
[1749545017213,0.65432246,109270.0,109260.0,0.01913636]
[1749545017451,0.65432246,109270.0,109260.0,0.002]
[1749545017674,0.65432246,109270.0,109260.0,0.01913634]
[1749545017889,0.65432246,109270.0,109260.0,0.01056817]
[1749545018082,0.65432246,109270.0,109260.0,0.01913634]
[1749545018334,0.65432246,109270.0,109260.0,0.02770451]
[1749545018560,0.65432246,109270.0,109260.0,0.01913634]
[1749545019004,0.65432246,109270.0,109260.0,0.002]
[1749545019224,0.65432246,109270.0,109260.0,0.01056987]
[1749545019667,0.65432246,109270.0,109260.0,0.002]
[1749545019901,0.65432246,109270.0,109260.0,0.01056987]
[1749545020341,0.65432246,109270.0,109260.0,0.002]
[1749545020562,0.65432246,109270.0,109260.0,0.01913974]
[1749545020791,0.65432246,109270.0,109260.0,0.002]
[1749545021008,0.65432246,109270.0,109260.0,0.02770961]
[1749545021458,0.65432246,109270.0,109260.0,0.01913974]
[1749545021677,0.65432246,109270.0,109260.0,0.01056987]
[1749545021892,0.65432246,109270.0,109260.0,0.01913974]
[1749545022587,0.65432246,109270.0,109260.0,0.02770961]
[1749545023044,0.65432246,109270.0,109260.0,0.02770969]
[1749545023268,0.65432246,109270.0,109260.0,0.002]
[1749545023499,0.65432246,109270.0,109260.0,0.01913977]
[1749545023733,0.65432246,109270.0,109260.0,0.002]
[1749545024415,0.65432246,109270.0,109260.0,0.0191398]
[1749545024694,0.65432246,109270.0,109260.0,0.01913979]
[1749545024918,0.65432246,109270.0,109260.0,0.0277097]
[1749545025143,0.65432246,109270.0,109260.0,0.002]
[1749545025367,0.65432246,109270.0,109260.0,0.02773518]
[1749545025581,0.65432246,109270.0,109260.0,0.02773519]
[1749545025804,0.65432246,109270.0,109260.0,0.0105784]
[1749545026014,0.65432246,109270.0,109260.0,0.002]
[1749545026255,0.65432246,109270.0,109260.0,0.02773518]
[1749545026478,0.65432246,109270.0,109260.0,0.02773508]
[1749545026701,0.65432246,109270.0,109260.0,0.01057834]
[1749545026914,0.65432246,109270.0,109260.0,0.02773509]
[1749545027126,0.65432246,109270.0,109260.0,0.01915673]
[1749545027543,0.65432246,109270.0,109260.0,0.01057836]
[1749545027757,0.65432246,109270.0,109260.0,0.0105782]
[1749545027969,0.65432246,109270.0,109260.0,0.0277346]
[1749545028170,0.65432246,109270.0,109260.0,0.0191564]
[1749545028377,0.65432246,109270.0,109260.0,0.002]
[1749545028582,0.65432246,109270.0,109260.0,0.0277346]
[1749545029228,0.65432246,109270.0,109260.0,0.02773445]
[1749545029433,0.65432246,109270.0,109260.0,0.01057812]
[1749545029646,0.65432246,109270.0,109260.0,0.01915625]
[1749545029847,0.65432246,109270.0,109260.0,0.002]
[1749545030205,0.65432246,109270.0,109260.0,0.01915625]
[1749545030431,0.65432246,109270.0,109260.0,0.002]
[1749545030621,0.65432246,109270.0,109260.0,0.02773437]
[1749545031057,0.65432246,109270.0,109260.0,0.02773428]
[1749545031309,0.65432246,109270.0,109260.0,0.01915625]
[1749545031457,0.65432246,109270.0,109260.0,0.01057803]
[1749545031668,0.65432246,109270.0,109260.0,0.002]
[1749545031909,0.65432246,109270.0,109260.0,0.02773409]
[1749545032078,0.65432246,109270.0,109260.0,0.01057803]
[1749545032286,0.65432246,109270.0,109260.0,0.02773409]
[1749545033101,0.65432246,109270.0,109260.0,0.01915624]
[1749545033269,0.65432246,109270.0,109260.0,0.002]
[1749545033474,0.65432246,109270.0,109260.0,0.01057812]
[1749545033684,0.65432246,109270.0,109260.0,0.01915624]
[1749545033877,0.65432246,109270.0,109260.0,0.02773436]
[1749545034866,0.65432246,109270.0,109260.0,0.02773452]
[1749545035097,0.65432246,109270.0,109260.0,0.02773484]
[1749545035568,0.65432246,109270.0,109260.0,0.01057828]
[1749545035784,0.65432246,109270.0,109260.0,0.02773484]
[1749545036435,0.65432246,109270.0,109260.0,0.01057828]
[1749545036661,0.65432246,109270.0,109260.0,0.02773484]
[1749545036882,0.65432246,109270.0,109260.0,0.01057828]
[1749545037113,0.65432246,109270.0,109260.0,0.002]
[1749545037377,0.65432246,109270.0,109260.0,0.02773484]
[1749545038247,0.65432246,109270.0,109260.0,0.01057841]
[1749545038470,0.65432246,109270.0,109260.0,0.002]
[1749545038693,0.65432246,109270.0,109260.0,0.02773523]
[1749545039946,0.65432246,109270.0,109260.0,0.02773554]
[1749545040407,0.65432246,109270.0,109260.0,0.01915703]
[1749545040617,0.65432246,109270.0,109260.0,0.02773554]
[1749545040832,0.65432246,109270.0,109260.0,0.01915703]
[1749545041053,0.65432246,109270.0,109260.0,0.002]
[1749545041261,0.65432246,109270.0,109260.0,0.02773554]
[1749545042159,0.65432246,109270.0,109260.0,0.02773553]
[1749545042398,0.65432246,109270.0,109260.0,0.01915702]
[1749545042615,0.65432246,109270.0,109260.0,0.02773818]
[1749545043760,0.65432246,109270.0,109260.0,0.01915879]
[1749545043978,0.65432246,109270.0,109260.0,0.002]
[1749545044183,0.65432246,109270.0,109260.0,0.02773818]
[1749545045549,0.65432246,109270.0,109260.0,0.002]
[1749545045769,0.65432246,109270.0,109260.0,0.02773818]
[1749545046982,0.65432246,109270.0,109260.0,0.01057939]
[1749545047340,0.65432246,109270.0,109260.0,0.002]
[1749545047596,0.65432246,109270.0,109260.0,0.01915869]
[1749545047816,0.65432246,109270.0,109260.0,0.0191587]
[1749545048045,0.65432246,109270.0,109260.0,0.04303803]
[1749545048267,0.65432246,109270.0,109260.0,0.0173]
[1749545048513,0.65432246,109270.0,109260.0,0.04303803]
[1749545048733,0.65432246,109270.0,109260.0,0.0173]
[1749545049184,0.65432246,109270.0,109260.0,0.03445878]
[1749545049638,0.65432246,109270.0,109260.0,0.0344588]
[1749545049857,0.65432246,109270.0,109260.0,0.03445879]
[1749545050328,0.65432246,109270.0,109260.0,0.0430382]
[1749545050543,0.65432246,109270.0,109260.0,0.02587942]
[1749545050753,0.65432246,109270.0,109260.0,0.03445885]
[1749545050970,0.65432246,109270.0,109260.0,0.03445883]
[1749545051190,0.65432246,109270.0,109260.0,0.04303824]
[1749545051429,0.65432246,109270.0,109260.0,0.02587941]
[1749545051649,0.65432246,109270.0,109260.0,0.04303825]
[1749545051868,0.65432246,109270.0,109260.0,0.04303823]
[1749545052089,0.65432246,109270.0,109260.0,0.0258794]
[1749545052539,0.65424246,109270.0,109260.0,0.0336]
[1749545052777,0.65424246,109270.0,109260.0,0.05933797]
[1749545052996,0.65424246,109270.0,109260.0,0.05933791]
[1749545053223,0.65424246,109270.0,109260.0,0.0421793]
[1749545053442,0.65424246,109270.0,109260.0,0.04861378]
[1749545053663,0.65424246,109270.0,109260.0,0.0336]
[1749545053880,0.65424246,109270.0,109260.0,0.05719291]
[1749545054319,0.65424246,109270.0,109260.0,0.06577215]
[1749545054551,0.65424246,109270.0,109260.0,0.04003443]
[1749545054769,0.65424246,109270.0,109260.0,0.04217924]
[1749545054996,0.65424246,109270.0,109260.0,0.06577215]
[1749545055269,0.65424246,109270.0,109260.0,0.05933772]
[1749545055494,0.65424246,109270.0,109260.0,0.06576939]
[1749545055715,0.65424246,109270.0,109260.0,0.0336]
[1749545055932,0.65424246,109270.0,109260.0,0.05933468]
[1749545056383,0.65424246,109270.0,109260.0,0.06791289]
[1749545056600,0.65424246,109270.0,109260.0,0.05719009]
[1749545056817,0.65424246,109270.0,109260.0,0.04217822]
[1749545057252,0.65424246,109270.0,109260.0,0.0743465]
[1749545057470,0.65424246,109270.0,109260.0,0.05075643]
[1749545057690,0.65424246,109270.0,109260.0,0.0743465]
[1749545058794,0.65424246,109270.0,109260.0,0.06576829]
[1749545059045,0.65424246,109270.0,109260.0,0.06791259]
[1749545059252,0.65424246,109270.0,109260.0,0.07434618]
[1749545059459,0.65424246,109270.0,109260.0,0.03445634]
[1749545059892,0.65424246,109270.0,109260.0,0.05804618]
[1749545060041,0.65424246,109270.0,109260.0,0.02587822]
[1749545060224,0.65424246,109270.0,109260.0,0.05161259]
[1749545060592,0.65424246,109270.0,109260.0,0.04303447]
[1749545060713,0.65424246,109270.0,109260.0,0.05804618]
[1749545060931,0.65424246,109270.0,109260.0,0.05161259]
[1749545061124,0.65424246,109270.0,109260.0,0.05804618]
[1749545062210,0.65424246,109270.0,109260.0,0.05688969]
[1749545062388,0.65424246,109270.0,109260.0,0.07404539]
[1749545062587,0.65424246,109270.0,109260.0,0.0676119]
[1749545062854,0.66964246,109270.0,109260.0,0.02558954]
[1749545063048,0.65424246,109270.0,109260.0,0.04274529]
[1749545063248,0.65424246,109270.0,109260.0,0.04274539]
[1749545063656,0.65424246,109270.0,109260.0,0.04274538]
[1749545064032,0.65424246,109270.0,109260.0,0.03416747]
[1749545064238,0.65424246,109270.0,109260.0,0.02558965]
[1749545064455,0.65424246,109270.0,109260.0,0.04274558]
[1749545064660,0.65424246,109270.0,109260.0,0.02677822]
[1749545064861,0.65424246,109270.0,109260.0,0.05894569]
[1749545065202,0.65424246,109270.0,109260.0,0.05251216]
[1749545065450,0.65424246,109270.0,109260.0,0.0417897]
[1749545065666,0.65424246,109270.0,109260.0,0.0353562]
[1749545065870,0.65424246,109270.0,109260.0,0.0417897]
[1749545066066,0.65424246,109270.0,109260.0,0.05894572]
[1749545066334,0.65424246,109270.0,109260.0,0.02677822]
[1749545066573,0.65424246,109270.0,109260.0,0.03321172]
[1749545066988,0.65424246,109270.0,109260.0,0.05894572]
[1749545067424,0.65424246,109270.0,109260.0,0.04178972]
[1749545067633,0.65424246,109270.0,109260.0,0.05894591]
[1749545067839,0.65424246,109270.0,109260.0,0.03535624]
[1749545068034,0.65424246,109270.0,109260.0,0.02677822]
[1749545068245,0.65424246,109270.0,109260.0,0.03321175]
[1749545068583,0.65424246,109270.0,109260.0,0.0417898]
[1749545068788,0.65424246,109270.0,109260.0,0.05036785]
[1749545068991,0.65424246,109270.0,109260.0,0.03535627]
[1749545069193,0.65424246,109270.0,109260.0,0.05251237]
[1749545069405,0.65424246,109270.0,109260.0,0.0589459]
[1749545069531,0.65424246,109270.0,109260.0,0.04393416]
[1749545069743,0.65424246,109270.0,109260.0,0.03321169]
[1749545070152,0.65424246,109270.0,109260.0,0.0589456]
[1749545070609,0.65424246,109270.0,109260.0,0.05036763]
[1749545070830,0.65424246,109270.0,109260.0,0.0589456]
[1749545071155,0.65424246,109270.0,109260.0,0.05251213]
[1749545071284,0.65424246,109270.0,109260.0,0.04178965]
[1749545071491,0.65424246,109270.0,109260.0,0.05036763]
[1749545071686,0.65424246,109270.0,109260.0,0.03321169]
[1749545071931,0.65424246,109270.0,109260.0,0.0589456]
[1749545072720,0.65424246,109270.0,109260.0,0.05036741]
[1749545072891,0.65424246,109270.0,109260.0,0.0589453]
[1749545073094,0.65424246,109270.0,109260.0,0.02677822]
[1749545073295,0.65424246,109270.0,109260.0,0.05036741]
[1749545073530,0.65424246,109270.0,109260.0,0.04178952]
[1749545073726,0.65424246,109270.0,109260.0,0.05894538]